{"text_format":"1","workbook":"xlsx","n_sheets":4,"sheets":["قاعدة البيانات","سند تحصيل","إشعار إصدار سند تحصيل","إشعار بالخصم"],"not_rendered":{"charts":0,"images":1,"macros":1,"external_links":1,"defined_names":6,"comments":0,"pivot_tables":0},"unopened":[],"bounds":{"document_bytes":16777216,"sheet_cells":100000,"rows_first":2000,"rows_last":500,"rows_between":2000,"halvings":0,"cell_chars":16384,"cell_head_chars":4096},"cells_cut":0,"cells_raw":0,"read":"whole","date_system":"1900"}

{"sheet":"قاعدة البيانات","index":0,"n_rows":14,"n_cols":19,"rows_kept":14,"cut":false,"hidden":false,"merged":[[5,12,5,13],[2,10,2,12]]}
["الإسم واللقب"," الرقم التسلسلي","العنوان","رقم الحساب","البنك","رقم الضمان الاجتماعي","الصافي NET","عدد أيام الغياب","الخصم",null,"الإسم واللقب"," الرقم التسلسلي","العنوان","رقم الحساب","البنك","رقم الضمان الاجتماعي","الصافي NET","عدد أيام الغياب","الخصم"]
["محزم نوال",1,"الكيلون بوثلجة الطارف",15205090100,"ق.ش.ج الطارف",83095940,51609.95,1,{"$f":"(G2/30)*H2","v":1720.3316666666665},null,"هيبة بوستة",{"$f":"VLOOKUP($K$2,Tableau1[[الإسم واللقب]:[ الرقم التسلسلي]],2,0)","v":{"$error":"#N/A"}},{"$f":"VLOOKUP($K$2,Tableau1[[الإسم واللقب]:[العنوان]],3,0)","v":{"$error":"#N/A"}},{"$f":"VLOOKUP($K$2,Tableau1[[الإسم واللقب]:[رقم الحساب]],4,0)","v":{"$error":"#N/A"}},{"$f":"VLOOKUP($K$2,Tableau1[[الإسم واللقب]:[البنك]],5,0)","v":{"$error":"#N/A"}},{"$f":"VLOOKUP($K$2,Tableau1[[الإسم واللقب]:[رقم الضمان الاجتماعي]],6,0)","v":{"$error":"#N/A"}},{"$f":"VLOOKUP($K$2,Tableau1[[الإسم واللقب]:[الصافي NET]],7,0)","v":{"$error":"#N/A"}},{"$f":"VLOOKUP($K$2,Tableau1[[الإسم واللقب]:[عدد أيام الغياب]],8,0)","v":{"$error":"#N/A"}},{"$f":"VLOOKUP($K$2,Tableau1[],9,0)","v":{"$error":"#N/A"}}]
["عبيدات وفاء",2,"الطارف وسط الطارف",41000135544,"ق.ش.ج الطارف",83095140,66787.14,1,{"$f":"(G3/30)*H3","v":2226.2379999999998}]
["برج نصيرة",4,"حي القرقور ولاية الطارف",410001334671,"ق.ش.ج الطارف",56000445,76787.14,1,{"$f":"(G4/30)*H4","v":2559.5713333333333},null,null,null,null,null,"البنك"]
["عابد حكيم",5,"حي القرقور ولاية الطارف",10107391000,"ب.ت.م الطلرف",56000445,33966.559999999998,1,{"$f":"(G5/30)*H5","v":1132.2186666666666},null,null,null,null,null,"ب.ف.ت ر الطارف"]
["بونوالة راضية",6,"الزيتونة مركز ولاية الطارف",563320001500,"ب.ف.ت ر الطارف",77022143,26787.14,1,892.90466666666669,null,null,null,null,null,"ب.ف.ت ر بوحجار"]
["بونوالة سليمة",7,"الزيتونة ولاية الطارف",811005601500,"ب.ف.ت ر الطارف",79046349,97748.31,3,9774.8310000000001,null,null,null,null,null,"ب.ف.ت.ر الذرعان"]
["دربالة صفوة",9,"حي القرقور ولاية الطارف",300858220000,"ب.ف.ت ر الطارف",730025659,39888.36,3,3988.8360000000002,null,null,null,null,null,"ب.ف.ت.ر بن مهيدي"]
["متيجي جميلة",10,"حي 32 مسكن بلدية بوحجار ولاية الطارف",300823017010,"ب.ف.ت ر بوحجار",790301057,4366.5600000000004,30,4366.5600000000004,null,null,null,null,null,"ب.ت.م الطلرف"]
["دين عليمة",11,"عين العسل ولاية الطارف",3008110058622,"ق.ش.ج الطارف",830507928,37277.01,1,1242.567,null,null,null,null,null,"ق.ش.ج الطارف"]
["بوكفة دنيا",12,"عين العسل ولاية الطارف",410001337581,"ق.ش.ج الطارف",410001496,20209.95,2,1347.3300000000002,null,null,null,null,null,"ق.ش.ج القالة"]
["كريم عصام",13,"حي الشهداء بن مهيدي طارف",525040020332,"ب.ف.ت.ر بن مهيدي",830513008,24046.87,1,801.5623333333333,null,null,null,null,null,"ح ج ب"]
["سوحة دليلة ",14,"حي سيدي مسعود بوثلجة الطارف",410000479228,"ق.ش.ج الطارف",800014346,426787.14,1,14226.238000000001,null,null,null,null,null,"خزينة الطارف"]
["حمزي سامية ",15,"حي زراد حسين بوثلجة الطارف",15205090100,"ق.ش.ج الطارف",810606931,67748.31,1,2258.277]

{"sheet":"سند تحصيل","index":1,"n_rows":38,"n_cols":13,"rows_kept":38,"cut":false,"hidden":false,"merged":[[36,2,36,4],[13,1,13,2],[23,3,23,4],[23,1,23,2],[34,1,34,2],[25,1,26,2],[28,1,29,2],[31,1,32,2]]}
[]
[]
[]
[]
["وزارة الاشغال العمـــومية والنقـــل",null,null,null,"   الطارف في :","2018-07-15",null,null,null,null,null,null,"• يخصم 30 يوم بسبب الإجازة المرضية وذلك تبعا للمقررة رقم 433 بتاريخ 2018/04/05."]
["مديــرية الاشغــال العمومية",null,null,null,null,null,null,null,null,null,null,null,"• يخصم 01 يوم بسبب الغياب الغير مبرر وذلك تبعا للمقررة رقم 458 بتاريخ 22/04/2018."]
["لــولايــــــــة الطــــــــــارف",null,null,null,null,null,null,null,null,null,null,null,"• يخصم 01 يوم بسبب الغياب المبرر وذلك تبعا للمقررة رقم 499 بتاريخ 01/09/2018."]
["الــرقم التسلسلي          /2018",null,null,null,null,null,null,null,null,null,null,null,"• يخصم 30 يوم بسبب إجازة أمومة وذلك تبعا للمقررة رقم 455 بتاريخ 2018/03/05."]
[]
[null,null,"* سند تحصيــل *                          "]
[]
["السيــد :","دربالة صفوة","رقم الحساب :",{"$f":"IFERROR(INDEX(Tableau1[رقم الحساب],MATCH($B$12,Tableau1[الإسم واللقب],0)),\"\")","v":300858220000},{"$f":"IFERROR(INDEX(Tableau1[البنك],MATCH($B$12,Tableau1[الإسم واللقب],0)),\"\")","v":"ب.ف.ت ر الطارف"}]
[]
["العنوان :",{"$f":"IFERROR(INDEX(Tableau1[العنوان],MATCH($B$12,Tableau1[الإسم واللقب],0)),\"\")","v":"حي القرقور ولاية الطارف"}]
[]
["  رقم الضمان الاجتماعي :",null,{"$f":"IFERROR(INDEX(Tableau1[رقم الضمان الاجتماعي],MATCH($B$12,Tableau1[الإسم واللقب],0)),\"\")","v":730025659}]
[]
["  مطالب لدفع صندوق صندوق السيد أمين الخزينة لولاية الطارف"]
[]
["  و المطالب بدوره بتحصيله في الفصل : 20100707/10 لميزنية الدولة"]
[]
["  بالمبلغ المبين أدناه"]
[]
[null,"سبب الدفع",null,"المبلغ"]
[]
[null,"• يخصم 01 يوم بسبب الغياب الغير مبرر وذلك تبعا للمقررة رقم 458 بتاريخ 22/04/2018."]
[]
[]
[null,"• يخصم 30 يوم بسبب إجازة أمومة وذلك تبعا للمقررة رقم 455 بتاريخ 2018/03/05."]
[]
[]
[null,"• يخصم 30 يوم بسبب إجازة أمومة وذلك تبعا للمقررة رقم 455 بتاريخ 2018/03/05."]
[]
[]
[null,"المجموع",null,{"$f":"IFERROR(INDEX(Tableau1[الخصم],MATCH($B$12,Tableau1[الإسم واللقب],0)),\"\")","v":3988.8360000000002}]
[]
[" •  يختم سند التحصيل بمبلغ :",null,{"$f":"[1]!ar(D35)","v":"ثلاثة آلاف وتسعمائة وثمانية وثمانون دينار جزائري وأربعة وثمانون سنتيم"}]
[null,null,null,null,"المديـــــر"]

{"sheet":"إشعار إصدار سند تحصيل","index":2,"n_rows":36,"n_cols":6,"rows_kept":36,"cut":false,"hidden":false,"merged":[[34,2,34,4],[13,1,13,2],[21,1,21,2],[21,3,21,4],[32,1,32,2],[32,3,32,4],[23,1,24,2],[26,1,27,2],[29,1,30,2]]}
[]
[null,"                        الجمهورية الجزائرية الديمقراطية الشعبية"]
[]
[]
["وزارة الاشغال العمـــومية والنقـــل",null,null,null,"   الطارف في :","2018-07-15"]
["مديــرية الاشغــال العمومية"]
["لــولايــــــــة الطــــــــــارف"]
["الــرقم التسلسلي          /2018"]
[]
[null,null,"* إشعار إصدار سند تحصيل *                             "]
[]
["السيــد :",{"$f":"'سند تحصيل'!B12","v":"دربالة صفوة"}]
[]
["العنوان :",{"$f":"'سند تحصيل'!B14:C14","v":"حي القرقور ولاية الطارف"}]
[]
["  مطالب لدفع صندوق صندوق السيد أمين الخزينة لولاية الطارف"]
[]
["  و المطالب بدوره بتحصيله في الفصل : 20100707/10 لميزنية الدولة"]
[]
["  بالمبلغ المبين أدناه"]
[]
[null,"سبب الدفع",null,"المبلغ"]
[]
[null,{"$f":"'سند تحصيل'!B26","v":"• يخصم 01 يوم بسبب الغياب الغير مبرر وذلك تبعا للمقررة رقم 458 بتاريخ 22/04/2018."}]
[]
[]
[null,{"$f":"'سند تحصيل'!B29","v":"• يخصم 30 يوم بسبب إجازة أمومة وذلك تبعا للمقررة رقم 455 بتاريخ 2018/03/05."}]
[]
[]
[null,{"$f":"'سند تحصيل'!B32","v":"• يخصم 30 يوم بسبب إجازة أمومة وذلك تبعا للمقررة رقم 455 بتاريخ 2018/03/05."}]
[]
[]
[null,"المجموع",null,{"$f":"'سند تحصيل'!D35:E35","v":3988.8360000000002}]
[]
[" •  يختم سند التحصيل بمبلغ :",null,{"$f":"[1]!ar(D33)","v":"ثلاثة آلاف وتسعمائة وثمانية وثمانون دينار جزائري وأربعة وثمانون سنتيم"}]
[null,null,null,null,"المديـــــر"]

{"sheet":"إشعار بالخصم","index":3,"n_rows":37,"n_cols":6,"rows_kept":37,"cut":false,"hidden":false,"merged":[[35,3,35,5],[33,1,33,3],[32,1,32,3],[31,1,31,3],[31,5,33,5]]}
[]
[null,"                        الجمهورية الجزائرية الديمقراطية الشعبية"]
[]
[]
["مديــرية الاشغــال العمومية",null,null,null,"   الطارف في :","2018-07-15"]
["ميزانيـــة الولاية"]
["لــولايــــــــة الطــــــــــارف"]
[]
[null,null,"الجدول رقم","2018/10"]
[]
["إشعار بالخصم وضع من طرف الأشغال العمومية لفائدة ميزانية الولاية"]
["الفصل :","904/9040"]
["المادة  :",739]
[null,"الرقم","تاريخ الإشعار","إسم المدين","مبلغ التحصيل","ملاحظات"]
[null,14,null,"عابد حكيم",1132.2186666666666,"ب.ت.م الطلرف"]
[]
[]
[]
[]
[]
[]
[]
[]
[]
[]
[]
[]
[]
[]
[]
[]
[null,"مجموع مبالغ التحصيل",null,null,{"$f":"SUM(E15:E31)","v":1132.2186666666666}]
[null,"المبالغ السابقة"]
[null,"المجموع العام",null,null,{"$f":"E33+E32","v":1132.2186666666666}]
[]
[null," •  يختم سند التحصيل بمبلغ :",null,{"$f":"[1]!ar(E34)","v":" ألف ومائة واثنان وثلاثون دينار جزائري واثنان وعشرون سنتيم"}]
[null,null,null,null,null,"المديـــــر"]